fUST/lending_fUST_20251010
["ID","MTS","AMOUNT","RATE_DAILY","PERIOD"]
[390449007,1760049064822,-799.82,0.0001726,2]
[390449009,1760049064831,-500.0,0.0001726,2]
[390449011,1760049064839,-500.0,0.0001726,2]
[390449013,1760049064849,-500.0,0.0001726,2]
[390449015,1760049064857,-919.61,0.0001726,2]
[390449017,1760049064866,-500.0,0.0001726,2]
[390449019,1760049064875,-201.04,0.0001726,2]
[390449021,1760049064884,-500.0,0.0001726,2]
[390449023,1760049064894,-695.88,0.0001726,2]
[390449025,1760049064902,-2375.08,0.0001726,2]
[390449027,1760049064912,-2411.66,0.0001726,2]
[390449029,1760049064921,-500.0,0.0001726,2]
[390449031,1760049064930,-1576.0,0.00017271,2]
[390449033,1760049064939,-600.0,0.0001728,2]
[390449035,1760049064948,-767.60000195,0.00017297,2]
[390449037,1760049064957,-1000.0,0.00017321,2]
[390449039,1760049064966,-1000.0,0.00017321,2]
[390449041,1760049064975,-1070.46651296,0.00017321,2]
[390449043,1760049064984,-626.82541977,0.00017321,2]
[390449045,1760049064994,-500.0,0.00017321,2]
[390449047,1760049065003,-1000.0,0.00017321,2]
[390449049,1760049065013,-505.21896128,0.00017321,2]
[390449051,1760049065022,-1000.0,0.00017321,2]
[390449053,1760049065031,-501.03686346,0.00017321,2]
[390449055,1760049065041,-498.07791259,0.00017321,2]
[390449057,1760049065050,-1000.90537525,0.00017321,2]
[390449059,1760049065060,-1000.0,0.00017321,2]
[390449061,1760049065069,-913.32657534,0.00017321,2]
[390449063,1760049065078,-1000.0,0.00017321,2]
[390449065,1760049065087,-1061.542572,0.00017321,2]
[390449067,1760049065096,-1000.0,0.00017321,2]
[390449069,1760049065106,-351.47199974,0.00017321,2]
[390449071,1760049065115,-1000.0,0.00017321,2]
[390449073,1760049065124,-1000.0,0.00017321,2]
[390449075,1760049065133,-1000.0,0.00017321,2]
[390449077,1760049065142,-1000.0,0.00017321,2]
[390449079,1760049065151,-500.0,0.00017321,2]
[390449081,1760049065160,-1000.0,0.00017321,2]
[390449083,1760049065169,-1000.0,0.00017321,2]
[390449085,1760049065178,-1000.0,0.00017321,2]
[390449087,1760049065187,-1000.0,0.00017321,2]
[390449089,1760049065196,-1000.0,0.00017321,2]
[390449091,1760049065206,-1000.0,0.00017321,2]
[390449093,1760049065215,-1000.0,0.00017321,2]
[390449095,1760049065224,-1000.0,0.00017321,2]
[390449097,1760049065235,-1000.0,0.00017321,2]
[390449099,1760049065244,-1000.0,0.00017321,2]
[390449101,1760049065253,-916.61937395,0.00017321,2]
[390449103,1760049065262,-500.67643969,0.00017321,2]
[390449105,1760049065271,-500.85193881,0.00017321,2]
[390449107,1760049065279,-1000.0,0.00017321,2]
[390449109,1760049065288,-1000.0,0.00017321,2]
[390449111,1760049065297,-1000.0,0.00017321,2]
[390449113,1760049065306,-1000.0,0.00017321,2]
[390449115,1760049065315,-1000.0,0.00017321,2]
[390449117,1760049065326,-1000.0,0.00017321,2]
[390449119,1760049065335,-1000.0,0.00017321,2]
[390449121,1760049065344,-3922.0,0.00017324,2]
[390449123,1760049065354,-168.01695143,0.00017377,2]
[390449125,1760049065363,-151.0,0.000174,2]
[390449127,1760049065372,-500.0,0.00017434,2]
[390449129,1760049065381,-8529.13696311,0.00017434,2]
[390449131,1760049065390,-600.0,0.0001746,2]
[390449133,1760049065399,-160.0,0.00017469,2]
[390449135,1760049065407,-234.29301719,0.00017469,2]
[390449137,1760049065416,-402.15066402,0.00017469,2]
[390449139,1760049065425,-160.0,0.00017469,2]
[390449141,1760049065434,-160.0,0.00017469,2]
[390449143,1760049065443,-160.0,0.00017469,2]
[390449145,1760049065452,-417.15472785,0.00017469,2]
[390449147,1760049065461,-259.60750435,0.00017475,2]
[390449149,1760049065469,-697.09824836,0.000175,2]
[390449151,1760049065478,-500.0,0.00017534,2]
[390449153,1760049065487,-500.0,0.00017534,2]
[390449155,1760049065496,-530.14,0.00017534,2]
[390449157,1760049065505,-368.71,0.00017534,2]
[390449159,1760049065515,-500.0,0.00017534,2]
[390449161,1760049065525,-500.0,0.00017534,2]
[390449163,1760049065534,-434.22,0.00017534,2]
[390449165,1760049065543,-500.0,0.00017534,2]
[390449167,1760049065552,-500.0,0.00017534,2]
[390449169,1760049065561,-500.0,0.00017534,2]
[390449170,1760049065570,-500.0,0.00017534,2]
[390449172,1760049065579,-500.0,0.00017534,2]
[390449174,1760049065589,-351.77,0.00017534,2]
[390449176,1760049065598,-500.0,0.00017534,2]
[390449178,1760049065607,-361.94,0.00017534,2]
[390449180,1760049065617,-500.0,0.00017534,2]
[390449182,1760049065626,-500.0,0.00017534,2]
[390449185,1760049065635,-500.0,0.00017534,2]
[390449186,1760049065645,-500.0,0.00017534,2]
[390449189,1760049065654,-500.0,0.00017534,2]
[390449191,1760049065663,-500.0,0.00017534,2]
[390449192,1760049065673,-500.0,0.00017534,2]
[390449194,1760049065682,-500.0,0.00017534,2]
[390449196,1760049065692,-487.0,0.00017534,2]
[390449199,1760049065702,-500.0,0.00017534,2]
[390449201,1760049065711,-500.0,0.00017534,2]
[390449203,1760049065720,-228.91448979,0.00017534,2]
[390449205,1760049065730,-1092.55,0.00017534,2]
[390449207,1760049065739,-642.36,0.00017534,2]
[390449209,1760049065749,-500.0,0.00017534,2]
[390449210,1760049065759,-500.0,0.00017534,2]
[390449212,1760049065767,-599.77,0.00017534,2]
[390449214,1760049065776,-500.0,0.00017534,2]
[390449216,1760049065790,-500.0,0.00017534,2]
[390449218,1760049065799,-500.0,0.00017534,2]
[390449220,1760049065808,-500.0,0.00017534,2]
[390449222,1760049065817,-500.0,0.00017534,2]
[390449224,1760049065827,-170.6,0.00017534,2]
[390449226,1760049065835,-239.2,0.00017534,2]
[390449228,1760049065845,-500.0,0.00017534,2]
[390449230,1760049065855,-500.0,0.00017534,2]
[390449232,1760049065863,-561.41,0.00017534,2]
[390449234,1760049065872,-602.39,0.00017534,2]
[390449236,1760049065881,-500.0,0.00017534,2]
[390449238,1760049065890,-500.0,0.00017534,2]
[390449240,1760049065899,-500.0,0.00017534,2]
[390449242,1760049065908,-500.0,0.00017534,2]
[390449244,1760049065917,-500.0,0.00017534,2]
[390449246,1760049065927,-500.0,0.00017534,2]
[390449257,1760049066052,-532.73,0.00017534,2]
[390449258,1760049066062,-500.0,0.00017534,2]
[390449260,1760049066071,-500.0,0.00017534,2]
[390449261,1760049066080,-1874.45,0.00017534,2]
[390449263,1760049066090,-500.0,0.00017534,2]
[390449264,1760049066099,-500.0,0.00017534,2]
[390449266,1760049066108,-1686.2,0.00017534,2]
[390449267,1760049066117,-500.0,0.00017534,2]
[390449269,1760049066127,-500.0,0.00017534,2]
[390449270,1760049066136,-500.0,0.00017534,2]
[390449272,1760049066145,-500.0,0.00017534,2]
[390449273,1760049066154,-500.0,0.00017534,2]
[390449275,1760049066163,-237.18,0.00017534,2]
[390449276,1760049066172,-968.16,0.00017534,2]
[390449278,1760049066182,-500.0,0.00017534,2]
[390449279,1760049066191,-756.4,0.00017534,2]
[390449281,1760049066201,-500.0,0.00017534,2]
[390449283,1760049066210,-500.0,0.00017534,2]
[390449284,1760049066219,-500.0,0.00017534,2]
[390449286,1760049066229,-476.41,0.00017534,2]
[390449288,1760049066238,-500.0,0.00017534,2]
[390449289,1760049066248,-569.05,0.00017534,2]
[390449291,1760049066258,-440.84,0.00017534,2]
[390449293,1760049066267,-500.0,0.00017534,2]
[390449294,1760049066277,-500.0,0.00017534,2]
[390449296,1760049066286,-500.0,0.00017534,2]
[390449297,1760049066295,-573.54,0.00017534,2]
[390449299,1760049066305,-500.0,0.00017534,2]
[390449301,1760049066314,-500.0,0.00017534,2]
[390449302,1760049066324,-500.0,0.00017534,2]
[390449304,1760049066334,-500.0,0.00017534,2]
[390449306,1760049066343,-500.0,0.00017534,2]
[390449307,1760049066352,-500.0,0.00017534,2]
[390449309,1760049066361,-693.22,0.00017534,2]
[390449311,1760049066371,-569.51,0.00017534,2]
[390449312,1760049066381,-500.0,0.00017534,2]
[390449314,1760049066390,-500.0,0.00017534,2]
[390449315,1760049066399,-500.0,0.00017534,2]
[390449317,1760049066408,-500.0,0.00017534,2]
[390449319,1760049066418,-209.04,0.00017534,2]
[390449320,1760049066428,-500.0,0.00017534,2]
[390449322,1760049066437,-175.04,0.00017534,2]
[390449324,1760049066445,-500.0,0.00017534,2]
[390449325,1760049066455,-2604.72,0.00017534,2]
[390449327,1760049066464,-593.95,0.00017534,2]
[390449329,1760049066474,-570.5,0.00017534,2]
[390449330,1760049066483,-500.0,0.00017534,2]
[390449332,1760049066492,-500.0,0.00017534,2]
[390449333,1760049066501,-809.27,0.00017534,2]
[390449335,1760049066511,-246.94,0.00017534,2]
[390449336,1760049066520,-500.0,0.00017534,2]
[390449338,1760049066529,-500.0,0.00017534,2]
[390449340,1760049066539,-500.0,0.00017534,2]
[390449341,1760049066548,-423.64,0.00017534,2]
[390449343,1760049066558,-1900.39,0.00017534,2]
[390449344,1760049066567,-500.0,0.00017534,2]
[390449346,1760049066577,-763.14,0.00017534,2]
[390449348,1760049066586,-500.0,0.00017534,2]
[390449349,1760049066597,-500.0,0.00017534,2]
[390449351,1760049066606,-500.0,0.00017534,2]
[390449353,1760049066616,-500.0,0.00017534,2]
[390449354,1760049066625,-631.85,0.00017534,2]
[390449356,1760049066634,-500.0,0.00017534,2]
[390449357,1760049066644,-500.0,0.00017534,2]
[390449359,1760049066653,-490.35,0.00017534,2]
[390449361,1760049066662,-3893.18,0.00017534,2]
[390449362,1760049066672,-877.37,0.00017534,2]
[390449364,1760049066681,-500.0,0.00017534,2]
[390449366,1760049066690,-2274.8,0.00017534,2]
[390449367,1760049066699,-6618.17,0.00017534,2]
[390449369,1760049066709,-891.25,0.00017534,2]
[390449370,1760049066719,-5972.17,0.00017534,2]
[390449372,1760049066728,-692.05,0.00017534,2]
[390449374,1760049066738,-1853.47,0.00017534,2]
[390449375,1760049066748,-3112.08,0.00017534,2]
[390449377,1760049066757,-500.0,0.00017534,2]
[390449379,1760049066767,-298.4,0.00017534,2]
[390449380,1760049066776,-2025.74,0.00017534,2]
[390449382,1760049066790,-571.53,0.00017534,2]
[390449384,1760049066802,-205.12,0.00017534,2]
[390449385,1760049066811,-544.46,0.00017534,2]
[390449387,1760049066821,-592.83,0.00017534,2]
[390449389,1760049066831,-500.0,0.00017534,2]
[390449390,1760049066840,-546.58,0.00017534,2]
[390449392,1760049066850,-161.82,0.00017534,2]
[390449393,1760049066859,-590.95,0.00017534,2]
[390449395,1760049066868,-500.0,0.00017534,2]
[390449397,1760049066878,-500.0,0.00017534,2]
[390449398,1760049066887,-167.9,0.00017534,2]
[390449400,1760049066896,-500.0,0.00017534,2]
[390449402,1760049066905,-500.0,0.00017534,2]
[390449403,1760049066915,-1076.65,0.00017534,2]
[390449405,1760049066924,-500.0,0.00017534,2]
[390449407,1760049066935,-564.15,0.00017534,2]
[390449408,1760049066944,-500.0,0.00017534,2]
[390449410,1760049066953,-921.56,0.00017534,2]
[390449411,1760049066962,-500.0,0.00017534,2]
[390449413,1760049066972,-500.0,0.00017534,2]
[390449415,1760049066982,-500.0,0.00017534,2]
[390449416,1760049066991,-1190.01,0.00017534,2]
[390449418,1760049067001,-500.0,0.00017534,2]
[390449420,1760049067010,-1119.17,0.00017534,2]
[390449421,1760049067018,-528.39,0.00017534,2]
[390449423,1760049067027,-500.0,0.00017534,2]
[390449424,1760049067036,-703.63,0.00017534,2]
[390449426,1760049067046,-569.9,0.00017534,2]
[390449428,1760049067056,-724.68,0.00017534,2]
[390449430,1760049067066,-5637.91,0.00017534,2]
[390449431,1760049067077,-500.0,0.00017534,2]
[390449433,1760049067087,-500.0,0.00017534,2]
[390449434,1760049067096,-500.0,0.00017534,2]
[390449436,1760049067105,-623.74,0.00017534,2]
[390449438,1760049067114,-500.0,0.00017534,2]
[390449439,1760049067123,-985.52,0.00017534,2]
[390449441,1760049067132,-500.0,0.00017534,2]
[390449443,1760049067142,-500.0,0.00017534,2]
[390449444,1760049067151,-500.0,0.00017534,2]
[390449446,1760049067160,-1168.48,0.00017534,2]
[390449447,1760049067169,-656.57,0.00017534,2]
[390449449,1760049067179,-3121.93,0.00017534,2]
[390449451,1760049067188,-682.02,0.00017534,2]
[390449452,1760049067198,-1762.16,0.00017534,2]
[390449454,1760049067208,-500.0,0.00017534,2]
[390449456,1760049067218,-500.0,0.00017534,2]
[390449457,1760049067230,-500.0,0.00017534,2]
[390449459,1760049067240,-500.0,0.00017534,2]
[390449461,1760049067250,-500.0,0.00017534,2]
[390449462,1760049067260,-500.0,0.00017534,2]
[390449464,1760049067269,-2002.17,0.00017534,2]
[390449465,1760049067279,-889.1,0.00017534,2]
[390449467,1760049067287,-500.0,0.00017534,2]
[390449469,1760049067296,-878.5,0.00017534,2]
[390449470,1760049067306,-770.72,0.00017534,2]
[390449472,1760049067314,-500.0,0.00017534,2]
[390449474,1760049067325,-500.0,0.00017534,2]
[390449475,1760049067334,-538.79,0.00017534,2]
[390449477,1760049067343,-712.23,0.00017534,2]
[390449478,1760049067352,-500.0,0.00017534,2]
[390449480,1760049067361,-500.0,0.00017534,2]
[390449482,1760049067370,-1001.89,0.00017534,2]
[390449483,1760049067380,-500.0,0.00017534,2]
[390449485,1760049067388,-5497.24,0.00017534,2]
[390449487,1760049067397,-500.0,0.00017534,2]
[390449488,1760049067406,-799.82,0.00017534,2]
[390449490,1760049067415,-330.65,0.00017534,2]
[390449492,1760049067424,-500.0,0.00017534,2]
[390449493,1760049067433,-919.61,0.00017534,2]
[390449495,1760049067442,-695.88,0.00017534,2]
[390449496,1760049067451,-2375.08,0.00017534,2]
[390449498,1760049067461,-605.0,0.00017606,2]
[390449500,1760049067470,-160.0,0.00017639,2]
[390449501,1760049067479,-248.58073895,0.0001764,2]
[390449503,1760049067488,-600.0,0.0001764,2]
[390449505,1760049067497,-605.0,0.00017658,2]
[390449506,1760049067506,-689.80133175,0.0001769,2]
[390449508,1760049067515,-697.09824836,0.000177,2]
[390449510,1760049067524,-500.0,0.00017708,2]
[390449511,1760049067533,-420.0,0.00017747,2]
[390449513,1760049067542,-767.60000195,0.00017777,2]
[390449515,1760049067551,-697.09824836,0.000178,2]
[390449516,1760049067560,-500.0,0.00017808,2]
[390449518,1760049067569,-500.0,0.00017808,2]
[390449520,1760049067579,-530.14,0.00017808,2]
[390449521,1760049067588,-273.24,0.00017808,2]
[390449523,1760049067597,-500.0,0.00017808,2]
[390449524,1760049067607,-500.0,0.00017808,2]
[390449526,1760049067616,-151.0,0.00017808,2]
[390449528,1760049067625,-500.0,0.00017808,2]
[390449530,1760049067634,-500.0,0.00017808,2]
[390449532,1760049067643,-197.8,0.00017808,2]
[390449534,1760049067653,-500.0,0.00017808,2]
[390449536,1760049067662,-500.0,0.00017808,2]
[390449538,1760049067671,-500.0,0.00017808,2]
[390449540,1760049067681,-500.0,0.00017808,2]
[390449542,1760049067690,-574.12,0.00017808,2]
[390449544,1760049067700,-159.74,0.00017808,2]
[390449546,1760049067710,-151.0,0.00017808,2]
[390449548,1760049067719,-268.900589,0.00017808,2]
[390449550,1760049067728,-500.0,0.00017808,2]
[390449552,1760049067738,-500.0,0.00017808,2]
[390449554,1760049067747,-151.0,0.00017808,2]
[390449556,1760049067759,-151.0,0.00017808,2]
[390449558,1760049067768,-1092.55,0.00017808,2]
[390449560,1760049067778,-151.0,0.00017808,2]
[390449562,1760049067791,-500.0,0.00017808,2]
[390449564,1760049067801,-500.0,0.00017808,2]
[390449566,1760049067811,-500.0,0.00017808,2]
[390449568,1760049067820,-500.0,0.00017808,2]
[390449570,1760049067831,-500.0,0.00017808,2]
[390449572,1760049067840,-500.0,0.00017808,2]
[390449574,1760049067850,-508.18,0.00017808,2]
[390449576,1760049067859,-151.21,0.00017808,2]
[390449578,1760049067868,-500.0,0.00017808,2]
[390449579,1760049067878,-500.0,0.00017808,2]
[390449580,1760049067887,-602.72,0.00017808,2]
[390449581,1760049067896,-500.0,0.00017808,2]
[390449582,1760049067904,-1874.45,0.00017808,2]
[390449583,1760049067913,-500.0,0.00017808,2]
[390449584,1760049067922,-229.58133571,0.00017808,2]
[390449585,1760049067931,-205.3908823,0.00017808,2]
[390449586,1760049067940,-500.0,0.00017808,2]
[390449587,1760049067949,-1686.2,0.00017808,2]
[390449588,1760049067958,-519.75,0.00017808,2]
[390449589,1760049067967,-500.0,0.00017808,2]
[390449590,1760049067976,-604.0,0.00017808,2]
[390449591,1760049067985,-293.82,0.00017808,2]
[390449592,1760049067994,-500.0,0.00017808,2]
[390449593,1760049068003,-968.16,0.00017808,2]
[390449594,1760049068013,-459.14,0.00017808,2]
[390449595,1760049068022,-756.4,0.00017808,2]
[390449596,1760049068031,-360.60741797,0.00017808,2]
[390449597,1760049068040,-500.0,0.00017808,2]
[390449598,1760049068049,-183.26,0.00017808,2]
[390449599,1760049068059,-569.05,0.00017808,2]
[390449600,1760049068068,-500.0,0.00017808,2]
[390449601,1760049068080,-500.0,0.00017808,2]
[390449602,1760049068089,-500.0,0.00017808,2]
[390449603,1760049068098,-573.54,0.00017808,2]
[390449604,1760049068108,-500.0,0.00017808,2]
[390449605,1760049068117,-500.0,0.00017808,2]
[390449606,1760049068127,-500.0,0.00017808,2]
[390449607,1760049068136,-500.0,0.00017808,2]
[390449608,1760049068146,-500.0,0.00017808,2]
[390449609,1760049068155,-500.0,0.00017808,2]
[390449610,1760049068165,-693.22,0.00017808,2]
[390449611,1760049068174,-500.0,0.00017808,2]
[390449612,1760049068183,-500.0,0.00017808,2]
[390449614,1760049068193,-500.0,0.00017808,2]
[390449615,1760049068318,-500.0,0.00017808,2]
[390449616,1760049068329,-200.32,0.00017808,2]
[390449617,1760049068338,-2604.72,0.00017808,2]
[390449619,1760049068347,-500.0,0.00017808,2]
[390449620,1760049068356,-200.11,0.00017808,2]
[390449621,1760049068366,-809.27,0.00017808,2]
[390449623,1760049068376,-608.78,0.00017808,2]
[390449625,1760049068392,-500.0,0.00017808,2]
[390449627,1760049068401,-500.0,0.00017808,2]
[390449629,1760049068410,-151.0,0.00017808,2]
[390449631,1760049068419,-1900.39,0.00017808,2]
[390449633,1760049068428,-1712.0,0.00017808,2]
[390449635,1760049068438,-525.75,0.00017808,2]
[390449637,1760049068447,-763.14,0.00017808,2]
[390449639,1760049068456,-500.0,0.00017808,2]
[390449641,1760049068467,-500.0,0.00017808,2]
[390449643,1760049068476,-151.0,0.00017808,2]
[390449645,1760049068485,-500.0,0.00017808,2]
[390449647,1760049068494,-627.48,0.00017808,2]
[390449649,1760049068504,-151.0,0.00017808,2]
[390449651,1760049068513,-500.0,0.00017808,2]
[390449653,1760049068522,-500.0,0.00017808,2]
[390449655,1760049068532,-3893.18,0.00017808,2]
[390449658,1760049068541,-877.37,0.00017808,2]
[390449660,1760049068550,-500.0,0.00017808,2]
[390449661,1760049068559,-151.0,0.00017808,2]
[390449663,1760049068568,-500.0,0.00017808,2]
[390449665,1760049068578,-500.0,0.00017808,2]
[390449668,1760049068587,-151.0,0.00017808,2]
[390449669,1760049068596,-151.0,0.00017808,2]
[390449672,1760049068606,-151.0,0.00017808,2]
[390449674,1760049068615,-2274.8,0.00017808,2]
[390449676,1760049068624,-151.0,0.00017808,2]
[390449678,1760049068633,-151.0,0.00017808,2]
[390449680,1760049068642,-6618.17,0.00017808,2]
[390449682,1760049068652,-891.25,0.00017808,2]
[390449684,1760049068661,-5972.17,0.00017808,2]
[390449686,1760049068671,-692.05,0.00017808,2]
[390449688,1760049068680,-1853.47,0.00017808,2]
[390449690,1760049068689,-3112.08,0.00017808,2]
[390449692,1760049068698,-500.0,0.00017808,2]
[390449694,1760049068708,-2025.74,0.00017808,2]
[390449696,1760049068718,-571.53,0.00017808,2]
[390449698,1760049068728,-544.46,0.00017808,2]
[390449700,1760049068738,-592.83,0.00017808,2]
[390449702,1760049068748,-500.0,0.00017808,2]
[390449704,1760049068758,-590.95,0.00017808,2]
[390449706,1760049068767,-500.0,0.00017808,2]
[390449708,1760049068777,-500.0,0.00017808,2]
[390449710,1760049068790,-500.0,0.00017808,2]
[390449712,1760049068799,-1076.65,0.00017808,2]
[390449714,1760049068808,-500.0,0.00017808,2]
[390449716,1760049068817,-564.15,0.00017808,2]
[390449718,1760049068827,-921.56,0.00017808,2]
[390449720,1760049068837,-500.0,0.00017808,2]
[390449722,1760049068847,-1190.01,0.00017808,2]
[390449724,1760049068856,-500.0,0.00017808,2]
[390449726,1760049068867,-1119.17,0.00017808,2]
[390449728,1760049068876,-528.39,0.00017808,2]
[390449730,1760049068887,-703.63,0.00017808,2]
[390449732,1760049068897,-569.9,0.00017808,2]
[390449734,1760049068906,-724.68,0.00017808,2]
[390449736,1760049068915,-5637.91,0.00017808,2]
[390449738,1760049068924,-151.0,0.00017808,2]
[390449740,1760049068933,-500.0,0.00017808,2]
[390449742,1760049068942,-500.0,0.00017808,2]
[390449744,1760049068952,-151.0,0.00017808,2]
[390449746,1760049068961,-500.0,0.00017808,2]
[390449748,1760049068970,-623.74,0.00017808,2]
[390449750,1760049068979,-500.0,0.00017808,2]
[390449752,1760049068988,-985.52,0.00017808,2]
[390449754,1760049068997,-500.0,0.00017808,2]
[390449756,1760049069007,-343.66,0.00017808,2]
[390449758,1760049069016,-1168.48,0.00017808,2]
[390449760,1760049069026,-656.57,0.00017808,2]
[390449763,1760049069035,-3121.93,0.00017808,2]
[390449764,1760049069045,-682.02,0.00017808,2]
[390449766,1760049069054,-151.0,0.00017808,2]
[390449768,1760049069063,-1762.16,0.00017808,2]
[390449771,1760049069075,-500.0,0.00017808,2]
[390449772,1760049069084,-500.0,0.00017808,2]
[390449774,1760049069093,-500.0,0.00017808,2]
[390449776,1760049069103,-500.0,0.00017808,2]
[390449778,1760049069112,-500.0,0.00017808,2]
[390449780,1760049069121,-500.0,0.00017808,2]
[390449782,1760049069131,-500.0,0.00017808,2]
[390449784,1760049069140,-500.0,0.00017808,2]
[390449786,1760049069150,-2002.17,0.00017808,2]
[390449788,1760049069159,-889.1,0.00017808,2]
[390449791,1760049069168,-500.0,0.00017808,2]
[390449792,1760049069179,-878.5,0.00017808,2]
[390449794,1760049069188,-770.72,0.00017808,2]
[390449797,1760049069197,-500.0,0.00017808,2]
[390449798,1760049069207,-500.0,0.00017808,2]
[390449800,1760049069217,-538.79,0.00017808,2]
[390449803,1760049069227,-712.23,0.00017808,2]
[390449805,1760049069238,-500.0,0.00017808,2]
[390449807,1760049069247,-276.72,0.00017808,2]
[390449808,1760049069256,-1001.89,0.00017808,2]
[390449810,1760049069266,-513.97,0.00017808,2]
[390449812,1760049069275,-5497.24,0.00017808,2]
[390449814,1760049069286,-799.82,0.00017808,2]
[390449816,1760049069295,-919.61,0.00017808,2]
[390449818,1760049069304,-695.88,0.00017808,2]
[390449820,1760049069314,-605.0,0.00017831,2]
[390449822,1760049069323,-1680.0,0.00017835,2]
[390449824,1760049069333,-1415.83126983,0.00017868,2]
[390449827,1760049069343,-310.87931191,0.00017868,2]
[390449828,1760049069352,-1500.0,0.00017868,2]
[390449830,1760049069361,-1500.0,0.00017868,2]
[390449832,1760049069370,-1500.0,0.00017868,2]
[390449834,1760049069379,-1500.0,0.00017868,2]
[390449836,1760049069388,-1500.0,0.00017868,2]
[390449838,1760049069397,-1500.0,0.00017868,2]
[390449840,1760049069405,-1516.72694042,0.00017868,2]
[390449842,1760049069415,-1181.93753704,0.00017868,2]
[390449844,1760049069424,-1358.66931628,0.00017868,2]
[390449846,1760049069433,-500.0,0.00017868,2]
[390449848,1760049069442,-771.24384109,0.00017868,2]
[390449894,1760049070460,-500.0,0.00016438,2]
[390449895,1760049070469,-500.0,0.00016712,2]
[390449896,1760049070479,-500.0,0.00016712,2]
[390449897,1760049070488,-500.06988501,0.00016986,2]
[390449898,1760049070498,-458.99,0.00016986,2]
[390449899,1760049070507,-500.0,0.00016986,2]
[390449900,1760049070516,-651.79,0.0001726,2]
[390449901,1760049070527,-701.5,0.0001726,2]
[390449902,1760049070536,-500.0,0.00017534,2]
[390449903,1760049070545,-2411.66,0.00017534,2]
[390449904,1760049070554,-651.79,0.00017534,2]
[390449905,1760049070565,-701.5,0.00017534,2]
[390449906,1760049070574,-2375.08,0.00017808,2]
[390449907,1760049070583,-355.16048697,0.00017808,2]
[390449908,1760049070723,-2056.49951303,0.00017808,2]
[390449909,1760049070733,-651.79,0.00017808,2]
[390449910,1760049070742,-701.5,0.00017808,2]
[390449911,1760049070751,-728.75615891,0.00017868,2]
[390449912,1760049070761,-933.86669851,0.00017868,2]
[390449913,1760049070770,-1500.0,0.00017868,2]
[390449914,1760049070780,-583.3600727,0.00017868,2]
[390449915,1760049070793,-500.0,0.00017868,2]
[390449916,1760049070802,-1500.0,0.00017868,2]
[390449917,1760049070811,-1500.0,0.00017868,2]
[390449918,1760049070821,-1628.18149537,0.00017868,2]
[390449919,1760049070833,-1500.0,0.00017868,2]
[390449920,1760049070842,-1500.0,0.00017868,2]
[390449921,1760049070851,-904.10907766,0.00017868,2]
[390449922,1760049070862,-1500.0,0.00017868,2]
[390449923,1760049070871,-1500.0,0.00017868,2]
[390449924,1760049070881,-1500.0,0.00017868,2]
[390449925,1760049070890,-2325.7071938,0.00017877,2]